{"text_format":"1","workbook":"xlsx","n_sheets":3,"sheets":["invoice","codes","Customers"],"not_rendered":{"charts":0,"images":0,"macros":1,"external_links":0,"defined_names":2,"comments":0,"pivot_tables":0},"unopened":[],"bounds":{"document_bytes":16777216,"sheet_cells":100000,"rows_first":2000,"rows_last":500,"rows_between":2000,"halvings":0,"cell_chars":16384,"cell_head_chars":4096},"cells_cut":0,"cells_raw":0,"read":"whole","date_system":"1900"}

{"sheet":"invoice","index":0,"n_rows":134,"n_cols":10,"rows_kept":134,"cut":false,"hidden":false,"merged":[[4,6,4,7],[4,2,4,3],[2,2,2,3],[133,6,133,7],[132,6,132,7],[131,6,131,7],[130,6,130,7]]}
[]
[]
[null,null,"التاريخ",null,43337,0.55069444444444449]
[]
[null,null,"اسم",null,"محمد","الهاتف"]
[]
[]
[]
[null,null,"ترقيم","الكود","الصنف","الكمية","السعر","القيمة",null,{"$f":"TRIM($C9&\" \"&$D9&\" \"&$E9&\" \"&$F9&\" \"&$G9&\" \"&$H9&\" \"&$I109)","v":"ترقيم الكود الصنف الكمية السعر القيمة"}]
[null,null,1,11,"صنف 1",11,11,{"$f":"F10*G10","v":121},null,{"$f":"TRIM($C10&\" \"&$D10&\" \"&$E10&\" \"&$F10&\" \"&$G10&\" \"&$H10&\" \"&$I10)","v":"1 11 صنف 1 11 11 121"}]
[null,null,2,4,"صنف 4",10,166,{"$f":"F11*G11","v":1660},null,{"$f":"TRIM($C11&\" \"&$D11&\" \"&$E11&\" \"&$F11&\" \"&$G11&\" \"&$H11&\" \"&$I11)","v":"2 4 صنف 4 10 166 1660"}]
[null,null,3,3,"صنف 6",10,34,340,null,"3 3 صنف 6 10 34 340"]
[null,null,4,7,"صنف 8",12,1950,23400,null,"4 7 صنف 8 12 1950 23400"]
[null,null,5,5,"صنف 10",120,194,23280,null,"5 5 صنف 10 120 194 23280"]
[null,null,6,3,"صنف 11",120,34,4080,null,"6 3 صنف 11 120 34 4080"]
[null,null,7,4,"صنف 15",120,166,19920,null,"7 4 صنف 15 120 166 19920"]
[null,null,null,null,null,null,null,null,null,""]
[null,null,null,null,null,null,null,null,null,""]
[null,null,null,null,null,null,null,null,null,{"$f":"TRIM($C19&\" \"&$D19&\" \"&$E19&\" \"&$F19&\" \"&$G19&\" \"&$H19&\" \"&$I19)","v":""}]
[null,null,null,null,null,null,null,null,null,""]
[null,null,null,null,null,null,null,null,null,""]
[null,null,null,null,null,null,null,null,null,""]
[null,null,null,null,null,null,null,null,null,""]
[null,null,null,null,null,null,null,null,null,""]
[null,null,null,null,null,null,null,null,null,""]
[null,null,null,null,null,null,null,null,null,""]
[null,null,null,null,null,null,null,null,null,""]
[null,null,null,null,null,null,null,null,null,""]
[null,null,null,null,null,null,null,null,null,""]
[null,null,null,null,null,null,null,null,null,""]
[null,null,null,null,null,null,null,null,null,""]
[null,null,null,null,null,null,null,null,null,""]
[null,null,null,null,null,null,null,null,null,""]
[null,null,null,null,null,null,null,null,null,""]
[null,null,null,null,null,null,null,null,null,""]
[null,null,null,null,null,null,null,null,null,""]
[null,null,null,null,null,null,null,null,null,""]
[null,null,null,null,null,null,null,null,null,""]
[null,null,null,null,null,null,null,null,null,""]
[null,null,null,null,null,null,null,null,null,""]
[null,null,null,null,null,null,null,null,null,""]
[null,null,null,null,null,null,null,null,null,""]
[null,null,null,null,null,null,null,null,null,""]
[null,null,null,null,null,null,null,null,null,""]
[null,null,null,null,null,null,null,null,null,""]
[null,null,null,null,null,null,null,null,null,""]
[null,null,null,null,null,null,null,null,null,""]
[null,null,null,null,null,null,null,null,null,""]
[null,null,null,null,null,null,null,null,null,""]
[null,null,null,null,null,null,null,null,null,""]
[null,null,null,null,null,null,null,null,null,""]
[null,null,null,null,null,null,null,null,null,""]
[null,null,null,null,null,null,null,null,null,""]
[null,null,null,null,null,null,null,null,null,""]
[null,null,null,null,null,null,null,null,null,""]
[null,null,null,null,null,null,null,null,null,""]
[null,null,null,null,null,null,null,null,null,""]
[null,null,null,null,null,null,null,null,null,""]
[null,null,null,null,null,null,null,null,null,""]
[null,null,null,null,null,null,null,null,null,""]
[null,null,null,null,null,null,null,null,null,""]
[null,null,null,null,null,null,null,null,null,""]
[null,null,null,null,null,null,null,null,null,""]
[null,null,null,null,null,null,null,null,null,""]
[null,null,null,null,null,null,null,null,null,""]
[null,null,null,null,null,null,null,null,null,""]
[null,null,null,null,null,null,null,null,null,""]
[null,null,null,null,null,null,null,null,null,""]
[null,null,null,null,null,null,null,null,null,""]
[null,null,null,null,null,null,null,null,null,""]
[null,null,null,null,null,null,null,null,null,""]
[null,null,null,null,null,null,null,null,null,""]
[null,null,null,null,null,null,null,null,null,""]
[null,null,null,null,null,null,null,null,null,""]
[null,null,null,null,null,null,null,null,null,{"$f":"TRIM($C75&\" \"&$D75&\" \"&$E75&\" \"&$F75&\" \"&$G75&\" \"&$H75&\" \"&$I75)","v":""}]
[null,null,null,null,null,null,null,null,null,""]
[null,null,null,null,null,null,null,null,null,""]
[null,null,null,null,null,null,null,null,null,""]
[null,null,null,null,null,null,null,null,null,""]
[null,null,null,null,null,null,null,null,null,""]
[null,null,null,null,null,null,null,null,null,""]
[null,null,null,null,null,null,null,null,null,""]
[null,null,null,null,null,null,null,null,null,""]
[null,null,null,null,null,null,null,null,null,""]
[null,null,null,null,null,null,null,null,null,""]
[null,null,null,null,null,null,null,null,null,""]
[null,null,null,null,null,null,null,null,null,""]
[null,null,null,null,null,null,null,null,null,""]
[null,null,null,null,null,null,null,null,null,""]
[null,null,null,null,null,null,null,null,null,""]
[null,null,null,null,null,null,null,null,null,""]
[null,null,null,null,null,null,null,null,null,""]
[null,null,null,null,null,null,null,null,null,""]
[null,null,null,null,null,null,null,null,null,""]
[null,null,null,null,null,null,null,null,null,""]
[null,null,null,null,null,null,null,null,null,""]
[null,null,null,null,null,null,null,null,null,""]
[null,null,null,null,null,null,null,null,null,""]
[null,null,null,null,null,null,null,null,null,""]
[null,null,null,null,null,null,null,null,null,""]
[null,null,null,null,null,null,null,null,null,""]
[null,null,null,null,null,null,null,null,null,""]
[null,null,null,null,null,null,null,null,null,""]
[null,null,null,null,null,null,null,null,null,""]
[null,null,null,null,null,null,null,null,null,""]
[null,null,null,null,null,null,null,null,null,""]
[null,null,null,null,null,null,null,null,null,""]
[null,null,null,null,null,null,null,null,null,""]
[null,null,null,null,null,null,null,null,null,""]
[null,null,null,null,null,null,null,null,null,""]
[null,null,null,null,null,null,null,null,null,""]
[null,null,null,null,null,null,null,null,null,""]
[null,null,null,null,null,null,null,null,null,""]
[null,null,null,null,null,null,null,null,null,""]
[null,null,null,null,null,null,null,null,null,""]
[null,null,null,null,null,null,null,null,null,""]
[null,null,null,null,null,null,null,null,null,""]
[]
[]
[]
[]
[null,null,null,null,null,null,null,null,null,""]
[null,null,null,null,null,null,null,null,null,""]
[null,null,null,null,null,null,null,null,null,""]
[null,null,null,null,null,null,null,null,null,""]
[null,null,null,null,null,null,null,null,null,""]
[]
[null,null,null,null,null,null,null,null,null,""]
[null,null,null,null,null,null,null,null,null,""]
[]
[null,null,null,null,null,"الإجمالي",{"$f":"SUM(H10:H130)","v":72801}]
[null,null,null,null,null,"الباقي"]
[null,null,null,null,null,"دفع"]
[null,null,null,null,null,"المحموع",{"$f":"G131+G132-G133","v":72801}]

{"sheet":"codes","index":1,"n_rows":24,"n_cols":5,"rows_kept":24,"cut":false,"hidden":false,"merged":[]}
["كود صنف","اسم صنف",null,"سعر البيع","سعر شرء"]
[1,"صنف 1",null,180,170]
[2,"صنف 2",null,1950,1950]
[3,"صنف 3",null,34,28]
[4,"صنف 4",null,166,156]
[5,"صنف 5",null,194,184]
[7,"صنف 6",null,1950,1850]
[8,"صنف 7",null,2200,2150]
[10,"صنف 8",null,960,930]
[11,"صنف 9",null,2350,2250]
[12,"صنف 10",null,1000,920]
[13,"صنف 11",null,2000,1900]
[14,"صنف 12",null,1700,1600]
[16,"صنف 13",null,820,780]
[22,"صنف 14",null,800,704]
[23,"صنف 15",null,310,305]
[24,"صنف 16",null,840,792]
[26,"صنف 17",null,1800,1720]
[27,"صنف 18",null,340,310]
[28,"صنف 19",null,208,190]
[29,"صنف 20",null,160,152]
[30,"صنف 21",null,300,290]
[32,"صنف 22",null,160,152]
[33,"صنف 23",null,1500,1460]

{"sheet":"Customers","index":2,"n_rows":0,"n_cols":0,"rows_kept":0,"cut":false,"hidden":false,"merged":[]}